bitfinex/quotes_BTCUSD_20250428
["timestamp","ask_amount","ask_price","bid_price","bid_amount"]
[1745850199065,0.10689014,94845.0,94829.0,0.29198328]
[1745850199268,0.05221679,94920.0,94830.0,0.001]
[1745850199269,0.54031389,94870.0,94830.0,0.001]
[1745850199472,0.34,94868.0,94831.0,0.29198328]
[1745850199684,0.34,94866.0,94831.0,0.29198328]
[1745850199863,0.01454085,94864.0,94831.0,0.29198328]
[1745850200123,0.35454085,94862.0,94831.0,0.29198328]
[1745850200341,0.35454085,94860.0,94831.0,0.29198328]
[1745850200548,0.35454085,94858.0,94831.0,0.29198328]
[1745850200732,0.001,94846.0,94831.0,0.29198328]
[1745850201248,0.34,94856.0,94831.0,0.29198328]
[1745850201454,0.2212937,94897.0,94831.0,0.29198328]
[1745850201455,0.35454085,94854.0,94831.0,0.29198328]
[1745850201664,0.35454085,94849.0,94831.0,0.29198328]
[1745850201870,0.35454085,94847.0,94832.0,0.09928]
[1745850202080,0.35454085,94845.0,94831.0,0.29198328]
[1745850202903,0.35454085,94843.0,94831.0,0.29198328]
[1745850203219,0.01454085,94841.0,94831.0,0.29198328]
[1745850204846,0.01454085,94841.0,94831.0,0.29298328]
[1745850205048,0.35454085,94841.0,94831.0,0.29298328]
[1745850205578,0.35454085,94839.0,94831.0,0.29298328]
[1745850205788,0.35454085,94837.0,94831.0,0.001]
[1745850205994,0.35454085,94835.0,94831.0,0.001]
[1745850206206,0.35454085,94833.0,94831.0,0.001]
[1745850206417,0.46143099,94832.0,94831.0,0.001]
[1745850206623,0.35454085,94831.0,94828.0,0.002]
[1745850206730,0.34,94829.0,94828.0,0.002]
[1745850206940,0.10689014,94829.0,94828.0,0.002]
[1745850208503,0.47646976,94829.0,94828.0,0.002]
[1745850208945,0.49101061,94829.0,94828.0,0.002]
[1745850210743,0.36957962,94829.0,94828.0,0.002]
[1745850210951,0.37944051,94829.0,94828.0,0.002]
[1745850211175,0.38683593,94829.0,94828.0,0.002]
[1745850215076,0.40137678,94829.0,94828.0,0.002]
[1745850215289,0.50826692,94829.0,94828.0,0.002]
[1745850216649,0.51126692,94829.0,94828.0,0.002]
[1745850217077,0.50826692,94829.0,94828.0,0.002]
[1745850217522,0.51026692,94829.0,94828.0,0.002]
[1745850220437,1.26982192,94829.0,94828.0,0.002]
[1745850220650,1.26318592,94829.0,94828.0,0.002]
[1745850220861,0.86503592,94829.0,94828.0,0.002]
[1745850221064,0.86303592,94829.0,94828.0,0.002]
[1745850221454,0.84648292,94829.0,94828.0,0.002]
[1745850221657,0.35454085,94828.0,94805.0,0.29198328]
[1745850221861,0.01454085,94824.0,94805.0,0.29198328]
[1745850222012,0.35454085,94822.0,94803.0,0.0008462]
[1745850222212,0.35454085,94820.0,94803.0,0.0008462]
[1745850222420,0.35454085,94818.0,94803.0,0.0008462]
[1745850222634,0.49101061,94818.0,94803.0,0.0008462]
[1745850222807,0.49840603,94818.0,94803.0,0.0008462]
[1745850223243,0.50826692,94818.0,94803.0,0.0008462]
[1745850223680,0.51026692,94818.0,94803.0,0.0008462]
[1745850224308,0.56129361,94818.0,94803.0,0.0008462]
[1745850224457,0.51026692,94818.0,94803.0,0.0008462]
[1745850224657,1.76775292,94818.0,94803.0,0.0008462]
[1745850224864,0.01454085,94806.0,94803.0,0.0008462]
[1745850225117,0.12143099,94804.0,94803.0,0.0008462]
[1745850225309,0.56551353,94799.0,94798.0,0.0008484]
[1745850225534,0.35454085,94794.0,94783.0,0.0008488]
[1745850225721,0.01454085,94793.0,94783.0,0.0008488]
[1745850225887,0.01454085,94786.0,94783.0,0.0008488]
[1745850226095,0.01054996,94787.0,94783.0,0.0008488]
[1745850226096,3.72940275,94785.0,94783.0,0.0008488]
[1745850226320,3.63909317,94785.0,94783.0,0.0008488]
[1745850226547,0.88697203,94785.0,94783.0,0.0008488]
[1745850226740,0.70015003,94785.0,94783.0,0.0008488]
[1745850227714,0.70515003,94785.0,94783.0,0.0008488]
[1745850228982,0.35454085,94784.0,94756.0,0.08454291]
[1745850229183,0.46143099,94776.0,94756.0,0.08454291]
[1745850229389,0.93096299,94776.0,94756.0,0.08454291]
[1745850229603,0.92913461,94776.0,94756.0,0.08454291]
[1745850229766,0.96447066,94776.0,94756.0,0.08454291]
[1745850229978,0.79894008,94776.0,94756.0,0.08454291]
[1745850230276,0.66764403,94776.0,94775.0,0.0018486]
[1745850230496,0.49840603,94776.0,94775.0,0.0018486]
[1745850230689,0.5081929,94776.0,94775.0,0.0008486]
[1745850230914,0.54436057,94776.0,94775.0,0.0008486]
[1745850231113,0.51297566,94776.0,94775.0,0.0008486]
[1745850232278,0.48361328,94776.0,94775.0,0.0008486]
[1745850232812,0.5654571,94776.0,94775.0,0.0008486]
[1745850233586,0.2254571,94776.0,94775.0,0.0008486]
[1745850233793,0.5654571,94776.0,94775.0,0.0008486]
[1745850233945,1.5818581,94776.0,94775.0,0.0008486]
[1745850234155,1.60265002,94776.0,94775.0,0.0008486]
[1745850234363,1.49354702,94776.0,94775.0,0.0008486]
[1745850234561,0.74421302,94776.0,94775.0,0.0008486]
[1745850234770,0.7160891,94776.0,94775.0,0.0008486]
[1745850236504,0.35454085,94775.0,94746.0,0.08539151]
[1745850236733,0.35454085,94763.0,94746.0,0.08539151]
[1745850236942,0.35454085,94761.0,94746.0,0.08539151]
[1745850237152,0.46143099,94761.0,94746.0,0.08539151]
[1745850237360,0.16757409,94761.0,94746.0,0.08539151]
[1745850237573,0.12143099,94761.0,94746.0,0.08539151]
[1745850237824,0.13121786,94761.0,94746.0,0.08539151]
[1745850238041,0.13861328,94761.0,94746.0,0.08539151]
[1745850238248,0.13861328,94761.0,94746.0,0.0008486]
[1745850238452,0.50794853,94761.0,94746.0,0.0008486]
[1745850238702,0.60722853,94761.0,94746.0,0.0008486]
[1745850238874,4.54928067,94761.0,94746.0,0.0008486]
[1745850239075,5.25229567,94761.0,94746.0,0.0008486]
[1745850239279,4.29031267,94761.0,94746.0,0.0008486]
[1745850239479,0.01454085,94759.0,94746.0,0.0008486]
[1745850239681,0.46143099,94749.0,94746.0,0.0008486]
[1745850239883,0.35454085,94748.0,94746.0,0.0008486]
[1745850240057,0.77679524,94747.0,94746.0,0.0008486]
[1745850240304,0.13622539,94747.0,94746.0,0.0008486]
[1745850240506,0.00739542,94757.0,94746.0,0.0008486]
[1745850240704,0.10689014,94756.0,94750.0,0.08454291]
[1745850240903,0.34,94755.0,94750.0,0.08454291]
[1745850241112,0.34,94753.0,94750.0,0.08454291]
[1745850241517,0.34,94751.0,94748.0,0.001]
[1745850241696,0.35454085,94749.0,94748.0,0.001]
[1745850241899,0.46143099,94749.0,94748.0,0.001]
[1745850242107,0.01454085,94748.0,94746.0,0.0008486]
[1745850242316,0.44689014,94747.0,94746.0,0.0008486]
[1745850242525,1.62067841,94747.0,94746.0,0.0008486]
[1745850242729,1.56537082,94747.0,94746.0,0.0008486]
[1745850242936,1.67226096,94747.0,94746.0,0.0008486]
[1745850244358,0.35454085,94746.0,94737.0,0.0008486]
[1745850244564,0.46143099,94738.0,94737.0,0.0008486]
[1745850244762,0.4907534,94738.0,94737.0,0.0003486]
[1745850245170,0.500538,94738.0,94737.0,0.0003486]
[1745850245404,0.50793342,94738.0,94737.0,0.0003486]
[1745850246295,1.35034642,94738.0,94737.0,0.0003486]
[1745850246531,1.30868042,94738.0,94737.0,0.0003486]
[1745850246748,0.35454085,94737.0,94721.0,0.004]
[1745850246968,0.46143099,94734.0,94721.0,0.004]
[1745850247193,0.4907534,94734.0,94721.0,0.004]
[1745850247636,0.50793342,94734.0,94721.0,0.004]
[1745850247872,0.46407016,94734.0,94721.0,0.004]
[1745850248096,0.46407016,94734.0,94724.0,0.047]
[1745850248323,0.50792261,94734.0,94724.0,0.047]
[1745850248525,0.47861101,94734.0,94724.0,0.047]
[1745850248918,0.35718002,94734.0,94724.0,0.047]
[1745850249151,0.01718002,94734.0,94732.0,0.0469]
[1745850249572,0.02018002,94734.0,94733.0,0.0504488]
[1745850249928,0.01718002,94734.0,94733.0,0.0504488]
[1745850250546,0.01718002,94734.0,94733.0,0.0514488]
[1745850251860,0.01718002,94734.0,94733.0,0.0504488]
[1745850252243,0.01718002,94734.0,94733.0,0.0544488]
[1745850252800,0.01718002,94734.0,94733.0,0.06295139]
[1745850253010,0.03684492,94734.0,94733.0,0.0544488]
[1745850253428,0.03684492,94734.0,94733.0,0.34643208]
[1745850254278,0.01718002,94734.0,94733.0,0.34643208]
[1745850255039,0.03689001,94734.0,94733.0,0.34643208]
[1745850255239,0.06635268,94734.0,94733.0,0.34643208]
[1745850256749,0.03689001,94734.0,94733.0,0.34643208]
[1745850257193,0.03689001,94734.0,94733.0,0.33653176]
[1745850258069,0.06639858,94734.0,94733.0,0.33653176]
[1745850259746,0.06641099,94734.0,94733.0,0.33653176]
[1745850261645,0.06641099,94734.0,94733.0,0.33753176]
[1745850262107,0.06641099,94734.0,94733.0,0.38753176]
[1745850262310,0.03690242,94734.0,94733.0,0.38753176]
[1745850262510,0.03690242,94734.0,94733.0,0.4944219]
[1745850262724,0.000425,94786.0,94759.0,0.0466]
[1745850262931,0.02957638,94785.0,94770.0,0.36117629]
[1745850263133,0.02957638,94784.0,94770.0,0.36117629]
[1745850263282,0.02957638,94785.0,94770.0,0.36117629]
[1745850263492,0.02957638,94784.0,94768.0,0.14928]
[1745850263689,0.02957638,94785.0,94771.0,0.0984]
[1745850263890,0.02957638,94784.0,94775.0,0.36117629]
[1745850264094,0.02957638,94785.0,94775.0,0.36117629]
[1745850264394,0.02957638,94784.0,94773.0,0.001]
[1745850264617,0.02957638,94785.0,94773.0,0.001]
[1745850264917,0.000425,94786.0,94773.0,0.001]
[1745850264918,0.02957638,94784.0,94773.0,0.001]
[1745850265120,0.000425,94786.0,94773.0,0.001]
[1745850265121,0.02957638,94785.0,94773.0,0.001]
[1745850265323,0.02957638,94784.0,94773.0,0.001]
[1745850265472,0.000425,94786.0,94773.0,0.001]
[1745850265473,0.02957638,94785.0,94773.0,0.001]
[1745850265676,0.002,94784.0,94773.0,0.001]
[1745850266078,0.002,94784.0,94782.0,0.001]
[1745850266263,0.000425,94786.0,94783.0,0.29198328]
[1745850266671,0.003,94785.0,94783.0,0.29198328]
[1745850267947,0.000425,94786.0,94783.0,0.29198328]
[1745850268301,0.002425,94786.0,94783.0,0.29198328]
[1745850269713,0.002425,94786.0,94784.0,0.00850259]
[1745850269927,0.002425,94786.0,94783.0,0.29198328]
[1745850270130,0.002425,94786.0,94784.0,0.0992]
[1745850270812,0.002425,94786.0,94785.0,0.29298328]
[1745850271096,0.000425,94786.0,94785.0,0.29298328]
[1745850272131,0.002425,94786.0,94785.0,0.29298328]
[1745850272516,0.000425,94786.0,94785.0,0.29298328]
[1745850272713,0.001425,94786.0,94785.0,0.29298328]
[1745850274753,0.001425,94786.0,94785.0,0.34298328]
[1745850275326,0.000425,94786.0,94785.0,0.34298328]
[1745850275754,0.000425,94786.0,94785.0,0.29298328]
[1745850275959,0.000425,94786.0,94785.0,0.39218328]
[1745850276356,0.000425,94786.0,94785.0,0.39118328]
[1745850276559,0.000425,94786.0,94785.0,0.29198328]
[1745850277375,0.01022824,94786.0,94785.0,0.29198328]
[1745850280240,0.01022824,94786.0,94785.0,0.29298328]
[1745850280412,0.01022824,94786.0,94785.0,0.38918328]
[1745850281207,0.000425,94786.0,94785.0,0.38918328]
[1745850283448,0.000425,94786.0,94785.0,0.54577342]
[1745850287014,0.000425,94786.0,94785.0,0.54677342]
[1745850287686,0.000425,94786.0,94785.0,0.54577342]
[1745850288072,0.00980324,94807.0,94806.0,0.001]
[1745850288314,0.00980324,94817.0,94808.0,0.051]
[1745850288530,0.00980324,94817.0,94808.0,0.54337342]
[1745850289556,0.00735266,94834.0,94808.0,0.54337342]
[1745850290082,0.002,94835.0,94808.0,0.54337342]
[1745850290801,0.002,94835.0,94808.0,0.54937342]
[1745850291607,0.002,94835.0,94816.0,0.28798328]
[1745850291922,0.002,94835.0,94821.0,0.05]
[1745850292120,0.002,94835.0,94821.0,0.15689014]
[1745850292930,0.0176398,94822.0,94821.0,0.15689014]
[1745850293971,0.00780277,94822.0,94821.0,0.15989014]
[1745850294950,0.00780277,94822.0,94821.0,0.16089014]
[1745850295149,0.00780277,94822.0,94821.0,0.054]
[1745850295374,0.00780277,94822.0,94821.0,0.053]
[1745850295576,0.00780277,94822.0,94821.0,0.10308]
[1745850295778,0.00780277,94822.0,94821.0,0.15308]
[1745850296598,0.00780277,94822.0,94821.0,0.16089014]
[1745850296794,0.00780277,94822.0,94821.0,0.25997014]
[1745850297545,0.000425,94822.0,94821.0,0.54795342]
[1745850299597,0.00780277,94822.0,94821.0,0.54795342]
[1745850300034,0.00780277,94822.0,94821.0,0.39106328]
[1745850300243,0.00780277,94822.0,94821.0,0.34198328]
[1745850300444,0.00780277,94822.0,94821.0,0.44106328]
[1745850300845,0.00780277,94822.0,94821.0,0.43806328]
[1745850301282,0.03726455,94822.0,94821.0,0.38706328]
[1745850302248,0.03726455,94822.0,94821.0,0.38806328]
[1745850302433,0.03726455,94822.0,94821.0,0.28898328]
[1745850302628,0.03726455,94822.0,94821.0,0.28798328]
[1745850302858,0.03826455,94822.0,94821.0,0.28798328]
[1745850303677,0.03826455,94822.0,94821.0,0.38706328]
[1745850303861,0.00880277,94822.0,94821.0,0.38806328]
[1745850306141,0.00880277,94822.0,94821.0,0.28898328]
[1745850306349,0.00880277,94822.0,94821.0,0.38806328]
[1745850306560,0.00880277,94822.0,94821.0,0.38706328]
[1745850307530,0.00880277,94822.0,94821.0,0.28798328]
[1745850307733,0.00893986,94822.0,94821.0,0.28798328]
[1745850307930,0.00893986,94822.0,94821.0,0.38706328]
[1745850308406,0.00893986,94822.0,94821.0,0.28798328]
[1745850308623,0.00893986,94822.0,94821.0,0.38706328]
[1745850308823,0.03844035,94822.0,94821.0,0.38706328]
[1745850310406,0.04829105,94822.0,94821.0,0.38706328]
[1745850319741,0.04829105,94822.0,94821.0,0.28798328]
[1745850319930,0.04829105,94822.0,94821.0,0.38706328]
[1745850320627,0.04829105,94822.0,94821.0,0.28798328]
[1745850320832,0.04829105,94822.0,94821.0,0.38706328]
[1745850321050,0.04829105,94822.0,94821.0,0.28798328]
[1745850321265,0.04829105,94822.0,94821.0,0.38706328]
[1745850321576,0.04829105,94822.0,94821.0,0.28798328]
[1745850321735,0.04829105,94822.0,94821.0,0.38706328]
[1745850324294,0.03844035,94822.0,94821.0,0.38706328]
[1745850324493,0.03844035,94822.0,94821.0,0.28798328]
[1745850324671,0.03844035,94822.0,94821.0,0.38706328]
[1745850326719,0.03106258,94822.0,94821.0,0.38706328]
[1745850329533,0.03106258,94822.0,94821.0,0.38702328]
[1745850329697,0.03106258,94822.0,94821.0,0.43702328]
[1745850329898,0.00896986,94822.0,94821.0,0.43702328]
[1745850331508,0.00896986,94822.0,94821.0,0.38702328]
[1745850331857,0.03857423,94822.0,94821.0,0.38702328]
[1745850333038,0.03857423,94822.0,94821.0,0.37713166]
[1745850341688,0.03857423,94822.0,94821.0,0.27809166]
[1745850342066,0.01454085,94820.0,94802.0,0.27809166]
[1745850342267,0.35454085,94811.0,94802.0,0.27809166]
[1745850342445,0.02960437,94810.0,94802.0,0.27809166]
[1745850342848,0.00740777,94809.0,94802.0,0.27809166]
[1745850343087,0.02960437,94808.0,94802.0,0.27809166]
[1745850343859,0.00740777,94807.0,94802.0,0.27809166]
[1745850344059,0.02960437,94806.0,94802.0,0.27809166]
[1745850344460,0.00740777,94805.0,94802.0,0.27809166]
[1745850344660,0.00740777,94805.0,94803.0,0.001]
[1745850344968,0.00740777,94805.0,94804.0,0.001]
[1745850345803,0.00740777,94805.0,94804.0,0.00085793]
[1745850347457,0.00740777,94805.0,94804.0,0.27894959]
[1745850349441,0.00740777,94805.0,94804.0,0.27809166]
[1745850350071,0.03702852,94805.0,94804.0,0.27809166]
[1745850351016,0.04690047,94805.0,94804.0,0.27809166]
[1745850352383,0.04690047,94805.0,94799.0,0.09904]
[1745850352586,0.02962075,94804.0,94799.0,0.09904]
[1745850353137,0.02962075,94804.0,94801.0,0.00085793]
[1745850353332,0.00987195,94805.0,94804.0,0.00085793]
[1745850354413,0.01727215,94805.0,94804.0,0.00085793]
[1745850356200,0.01727215,94805.0,94804.0,0.27894959]
[1745850357010,0.01727215,94805.0,94804.0,0.37790959]
[1745850358168,0.01727215,94805.0,94804.0,0.32894959]
[1745850358370,0.01727215,94805.0,94804.0,0.42790959]
[1745850359188,0.01727215,94805.0,94804.0,0.42990959]
[1745850359344,0.0074002,94805.0,94804.0,0.42990959]
[1745850361988,0.01727113,94805.0,94804.0,0.42990959]
[1745850362402,0.01727113,94805.0,94804.0,0.37905166]
[1745850362613,0.04687891,94805.0,94804.0,0.28009166]
[1745850364138,0.04687891,94805.0,94804.0,0.27809166]
[1745850364346,0.04687891,94805.0,94797.0,0.09896]
[1745850364538,0.02960778,94804.0,94797.0,0.09896]
[1745850364840,0.03947871,94804.0,94797.0,0.09896]
[1745850365048,0.03700798,94803.0,94797.0,0.09896]
[1745850365243,0.03947871,94802.0,94797.0,0.09896]
[1745850365403,0.02960778,94801.0,94797.0,0.09896]
[1745850365805,0.0074002,94800.0,94797.0,0.09896]
[1745850366149,0.02960778,94799.0,94797.0,0.09896]
[1745850366689,0.01727113,94798.0,94797.0,0.09896]
[1745850366837,0.04687891,94798.0,94797.0,0.09896]
[1745850367049,0.04687891,94798.0,94797.0,0.09996]
[1745850368535,0.04687891,94798.0,94797.0,0.09896]
[1745850368753,0.04687891,94798.0,94797.0,0.09996]
[1745850369995,0.04687891,94798.0,94797.0,0.001]
[1745850370221,0.5083099,94798.0,94797.0,0.001]
[1745850370796,0.52804445,94798.0,94797.0,0.001]
[1745850371436,0.01454085,94797.0,94793.0,0.27809166]
[1745850371624,0.02960778,94796.0,94793.0,0.27809166]
[1745850371803,0.0074002,94795.0,94793.0,0.27809166]
[1745850372011,0.02960778,94794.0,94793.0,0.27809166]
[1745850372205,0.51077332,94794.0,94793.0,0.27809166]
[1745850372407,0.51817352,94794.0,94793.0,0.27809166]
[1745850372988,0.52804445,94794.0,94793.0,0.27281463]
[1745850373432,0.35454085,94793.0,94783.0,0.09896]
[1745850373633,0.40204085,94791.0,94783.0,0.09896]
[1745850373834,0.35454085,94789.0,94783.0,0.09896]
[1745850374085,0.35454085,94787.0,94783.0,0.09896]
[1745850374252,0.46143099,94787.0,94783.0,0.09896]
[1745850374585,0.05921326,94786.0,94783.0,0.09896]
[1745850374710,0.02960778,94785.0,94783.0,0.09896]
[1745850374910,0.02713475,94784.0,94783.0,0.09896]
[1745850375110,0.05674253,94784.0,94783.0,0.09896]
[1745850375670,0.03700568,94784.0,94783.0,0.09896]
[1745850375879,0.03700568,94784.0,94783.0,0.09996]
[1745850376428,0.03700568,94784.0,94775.0,0.27281463]
[1745850376634,0.0074002,94783.0,94775.0,0.27281463]
[1745850376967,0.00987093,94782.0,94775.0,0.27281463]
[1745850377549,0.0074002,94781.0,94775.0,0.27281463]
[1745850378174,0.0074002,94780.0,94775.0,0.27281463]
[1745850378379,0.0074002,94780.0,94775.0,0.27381463]
[1745850378380,0.49099895,94779.0,94775.0,0.27381463]
[1745850378575,0.06174085,94777.0,94775.0,0.001]
[1745850378784,0.49839915,94776.0,94775.0,0.001]
[1745850379029,0.35454085,94775.0,94771.0,0.0008486]
[1745850379232,0.06034085,94772.0,94771.0,0.0008486]
[1745850379406,0.58860104,94772.0,94771.0,0.0008486]
[1745850379610,0.35454085,94771.0,94755.0,0.0008486]
[1745850379809,0.35454085,94769.0,94755.0,0.0008486]
[1745850380090,0.35454085,94767.0,94755.0,0.0008486]
[1745850380292,1.12912295,94767.0,94755.0,0.0008486]
[1745850380495,0.68392288,94767.0,94755.0,0.0008486]
[1745850381006,0.01454085,94765.0,94755.0,0.0008486]
[1745850381235,0.35454085,94763.0,94755.0,0.0008486]
[1745850381550,0.35454085,94761.0,94755.0,0.0008486]
[1745850381792,0.49099895,94760.0,94755.0,0.0008486]
[1745850381964,0.49839915,94760.0,94755.0,0.0008486]
[1745850382201,0.50827008,94760.0,94755.0,0.0008486]
[1745850382875,0.5278989,94760.0,94755.0,0.0008486]
[1745850383094,0.5298989,94760.0,94755.0,0.0008486]
[1745850384060,0.55470598,94760.0,94755.0,0.0008486]
[1745850384461,0.59990598,94760.0,94755.0,0.0008486]
[1745850384651,0.5793279,94760.0,94755.0,0.0008486]
[1745850384854,0.5750989,94760.0,94755.0,0.0008486]
[1745850385107,0.54353094,94760.0,94755.0,0.0008486]
[1745850385460,0.35454085,94759.0,94733.0,0.08024011]
[1745850385674,0.35454085,94757.0,94734.0,0.27281463]
[1745850385870,0.06447113,94760.0,94734.0,0.27281463]
[1745850385871,0.01454085,94754.0,94734.0,0.27281463]
[1745850386079,0.35454085,94752.0,94734.0,0.27281463]
[1745850386447,0.35454085,94750.0,94734.0,0.27281463]
[1745850386636,0.01454085,94748.0,94734.0,0.27281463]
[1745850386874,0.35454085,94746.0,94734.0,0.27281463]
[1745850387430,0.00987093,94745.0,94734.0,0.27281463]
[1745850387822,0.0074002,94744.0,94734.0,0.27281463]
[1745850388830,0.00987093,94743.0,94734.0,0.27281463]
[1745850389037,0.01727113,94743.0,94734.0,0.27481463]
[1745850389483,0.01727113,94743.0,94734.0,0.27281463]
[1745850389671,0.0074002,94742.0,94734.0,0.27281463]
[1745850389898,0.00987093,94741.0,94734.0,0.27481463]
[1745850390301,0.00987093,94741.0,94734.0,0.27281463]
[1745850390658,0.0074002,94740.0,94734.0,0.27481463]
[1745850390852,0.0074002,94740.0,94736.0,0.00085793]
[1745850391259,0.0074002,94740.0,94734.0,0.27481463]
[1745850391530,0.01454085,94746.0,94734.0,0.27481463]
[1745850391677,0.35454085,94746.0,94734.0,0.27481463]
[1745850391907,0.35454085,94746.0,94734.0,0.27281463]
[1745850392107,0.35454085,94744.0,94734.0,0.27281463]
[1745850392276,0.46143099,94744.0,94734.0,0.27581463]
[1745850392483,0.01727113,94743.0,94734.0,0.27581463]
[1745850392678,0.01727113,94743.0,94734.0,0.27281463]
[1745850393334,0.0074002,94742.0,94734.0,0.27281463]
[1745850393869,0.00987093,94741.0,94734.0,0.27281463]
[1745850394221,0.0074002,94740.0,94734.0,0.27281463]
[1745850394429,0.0074002,94740.0,94734.0,0.28131722]
[1745850394612,0.00987093,94739.0,94734.0,0.27281463]
[1745850395040,0.0074002,94738.0,94734.0,0.27281463]
[1745850395852,0.01727113,94738.0,94734.0,0.27281463]
[1745850396068,0.0074002,94737.0,94734.0,0.27381463]
[1745850396196,0.0074002,94737.0,94736.0,0.10045793]
[1745850396398,0.0074002,94737.0,94736.0,0.14645793]
[1745850396614,0.00987093,94738.0,94736.0,0.14645793]
[1745850396840,0.00987093,94738.0,94737.0,0.05211085]
[1745850397040,0.00987093,94738.0,94737.0,0.05296878]
[1745850397293,0.0074002,94747.0,94741.0,0.05]
[1745850397504,0.0074002,94747.0,94742.0,0.00211077]
[1745850397835,8.184e-05,94748.0,94747.0,0.05085793]
[1745850398039,8.184e-05,94748.0,94747.0,0.1598586]
[1745850398190,8.184e-05,94748.0,94747.0,0.2078586]
[1745850398607,8.184e-05,94748.0,94747.0,0.2572586]
[1745850398769,0.00987093,94761.0,94760.0,0.05]
[1745850398971,0.00987093,94761.0,94760.0,0.32273279]
[1745850399170,0.01727113,94761.0,94760.0,0.32359072]
[1745850399377,0.01727113,94761.0,94760.0,0.52548086]
[1745850399993,0.0074002,94761.0,94760.0,0.52648086]
[1745850400609,0.0074002,94796.0,94777.0,0.00085793]
[1745850400815,0.34,94795.0,94781.0,0.05]
[1745850401097,0.00987093,94794.0,94781.0,0.05]
[1745850401296,0.01727113,94794.0,94781.0,0.05]
[1745850401450,0.01727113,94794.0,94778.0,0.37165279]
[1745850401670,0.01727113,94794.0,94781.0,0.05]
[1745850402282,0.0074002,94793.0,94781.0,0.05]
[1745850403429,0.00982874,94792.0,94781.0,0.05]
[1745850403633,0.01722894,94792.0,94781.0,0.05]
[1745850404242,0.0074002,94791.0,94781.0,0.05]
[1745850404595,0.00982874,94790.0,94781.0,0.05]
[1745850405359,0.0074002,94789.0,94781.0,0.05]
[1745850405562,0.01722894,94789.0,94781.0,0.05]
[1745850406051,0.0074002,94788.0,94782.0,0.27273279]
[1745850406840,0.0074002,94787.0,94782.0,0.27273279]
[1745850407355,0.00982874,94786.0,94782.0,0.27273279]
[1745850407769,0.0457,94785.0,94782.0,0.27273279]
[1745850407964,0.0074002,94784.0,94782.0,0.27273279]
[1745850408409,0.00982874,94783.0,94782.0,0.27273279]
[1745850408953,0.01722894,94783.0,94782.0,0.27273279]
[1745850411237,0.01922894,94783.0,94782.0,0.27273279]
[1745850411988,0.48065993,94783.0,94782.0,0.27273279]
[1745850415753,0.57759609,94783.0,94782.0,0.27273279]
[1745850415957,0.35454085,94782.0,94755.0,0.27273279]
[1745850416210,0.35454085,94769.0,94755.0,0.27273279]
[1745850416343,0.0496,94764.0,94755.0,0.27273279]
[1745850416954,0.02705457,94763.0,94755.0,0.27273279]
[1745850417365,0.00982874,94762.0,94755.0,0.27273279]
[1745850417589,0.0074002,94761.0,94755.0,0.27273279]
[1745850418498,0.0074002,94760.0,94755.0,0.27273279]
[1745850418706,0.00982874,94759.0,94755.0,0.27273279]
[1745850419196,0.0074002,94758.0,94755.0,0.27273279]
[1745850420182,0.01722894,94757.0,94755.0,0.27273279]
[1745850420790,0.01722894,94757.0,94755.0,0.001]
[1745850421232,0.0074002,94756.0,94755.0,0.001]
[1745850421436,0.0074002,94756.0,94754.0,0.09888]
[1745850421623,0.01722894,94756.0,94755.0,0.002]
[1745850422085,0.01722894,94756.0,94747.0,0.05]
[1745850422443,0.00982874,94755.0,94748.0,0.05]
[1745850422614,0.00982874,94755.0,94747.0,0.05]
[1745850422824,0.0074002,94754.0,94748.0,0.05850259]
[1745850423028,0.0074002,94754.0,94748.0,0.05]
[1745850423586,0.00982874,94753.0,94751.0,0.00085793]
[1745850423911,0.0074002,94752.0,94751.0,0.00085793]
[1745850424948,0.01722894,94752.0,94751.0,0.00185793]
[1745850425320,0.01722894,94752.0,94751.0,0.00296857]
[1745850425726,0.01722894,94752.0,94751.0,0.00396857]
[1745850426605,0.01722894,94752.0,94751.0,0.27670136]
[1745850426808,0.01722894,94752.0,94751.0,0.27459072]
[1745850428101,0.01722894,94752.0,94751.0,0.27373279]
[1745850428938,0.03690897,94752.0,94751.0,0.27373279]
[1745850429260,0.03690897,94752.0,94751.0,0.27459072]
[1745850429816,0.03690897,94752.0,94751.0,0.47758086]
[1745850430020,0.01722894,94752.0,94751.0,0.47758086]
[1745850430197,0.01454085,94781.0,94751.0,0.47758086]
[1745850430402,0.36952302,94780.0,94764.0,0.05]
[1745850430629,0.12143099,94781.0,94764.0,0.05]
[1745850431038,0.7374151,94780.0,94764.0,0.05]
[1745850431253,0.70789052,94780.0,94764.0,0.05]
[1745850431577,0.02953028,94779.0,94764.0,0.05]
[1745850431971,0.35454085,94777.0,94764.0,0.05]
[1745850432145,0.02953028,94776.0,94764.0,0.05]
[1745850432533,0.02953028,94776.0,94764.0,0.32273279]
[1745850432729,0.0074002,94775.0,94764.0,0.32273279]
[1745850432928,0.03935902,94774.0,94764.0,0.32273279]
[1745850433162,0.00982874,94774.0,94764.0,0.32273279]
[1745850433331,0.02954032,94773.0,94764.0,0.32273279]
[1745850433535,0.00982874,94774.0,94764.0,0.32273279]
[1745850433742,0.0074002,94773.0,94764.0,0.32273279]
[1745850433962,0.00982874,94772.0,94764.0,0.32273279]
[1745850434905,0.0074002,94771.0,94764.0,0.32273279]
[1745850435188,0.0074002,94771.0,94764.0,0.27273279]
[1745850435391,0.00982874,94770.0,94764.0,0.27273279]
[1745850435615,0.34,94768.0,94764.0,0.27273279]
[1745850435753,0.02955493,94767.0,94764.0,0.27273279]
[1745850436316,0.02955215,94766.0,94764.0,0.27273279]
[1745850436496,0.07485493,94765.0,94764.0,0.27273279]
[1745850436704,0.44197854,94765.0,94764.0,0.27273279]
[1745850437711,0.45180728,94765.0,94764.0,0.27273279]
[1745850438123,0.57323827,94765.0,94764.0,0.27273279]
[1745850438350,0.01454085,94764.0,94749.0,0.27273279]
[1745850438713,0.35454085,94762.0,94749.0,0.27273279]
[1745850438923,0.02955493,94761.0,94749.0,0.27273279]
[1745850439335,0.01722894,94760.0,94749.0,0.27273279]
[1745850439717,0.01972341,94759.0,94749.0,0.27273279]
[1745850440373,0.02712361,94758.0,94749.0,0.27273279]
[1745850440548,0.03695235,94758.0,94749.0,0.27273279]
[1745850441061,0.01972341,94757.0,94749.0,0.27273279]
[1745850441208,0.01972341,94756.0,94749.0,0.27273279]
[1745850441411,0.02712361,94756.0,94749.0,0.27273279]
[1745850441621,0.00982874,94755.0,94749.0,0.27273279]
[1745850441847,0.0074002,94754.0,94749.0,0.27273279]
[1745850442361,0.01972341,94753.0,94749.0,0.27273279]
[1745850442566,0.0074002,94752.0,94749.0,0.27273279]
[1745850442906,0.02955215,94751.0,94749.0,0.27273279]
[1745850443651,0.02712361,94750.0,94749.0,0.27273279]
[1745850444058,0.02712361,94750.0,94749.0,0.27373279]
[1745850444265,0.03695235,94750.0,94749.0,0.27373279]